Period,Quarter,"Recipient Name",City,Province,Country,Title,Language,Genre,Date,"Final Value","Original Value",Type,Purpose,Comments
2018-2019,P3,"Item 7 Copro inc",Montreal,Quebec,Canada,"Fils de Jean (Le)",French,"Drama (Film)",2018-10-04,2464.00,2968.00,Contribution,"International Marketing Program","Amended contract signed  14-FEB-17"
2018-2019,P3,"Buffalo Gal Pictures Inc.",Winnipeg,Manitoba,Canada,Thaw,English,Horror,2018-10-18,31400.00,15000.00,Advance,"Development Program","Amended contract signed  11-DEC-15"
2018-2019,P3,"Buffalo Gal Pictures Development Inc.",Winnipeg,Manitoba,Canada,"Less Than Kind Movie - Janukah",English,Comedy,2018-10-19,123294.00,40599.00,Advance,"Development Program","Amended contract signed  14-NOV-13"
2018-2019,P3,"Rajotte Productions Inc.",Winnipeg,Manitoba,Canada,"Concrete Indian",English,"Drama (Film)",2018-10-22,0.00,25000.00,Advance,"Development Program","Amended contract signed  17-JAN-13"
2018-2019,P3,"Isuma Distribution International Ltd.",Montreal,Quebec,Canada,"Maliglutit (Searchers)",English,"Drama (Film)",2018-10-23,188049.00,37390.00,Advance,"Marketing Program","Amended contract signed  30-SEP-16"
2018-2019,P3,"Bravo Charlie inc.",Montreal,Quebec,Canada,"Chien de garde",French,Thriller,2018-10-24,100000.00,100000.00,Contribution,"International Marketing Program",
2018-2019,P3,"Encore Films inc.",Montreal,Quebec,Canada,"Pour r�ussir un poulet",French,"Drama (Film)",2018-10-29,10119.00,15000.00,Advance,"Development Program","Amended contract signed  08-NOV-16"
2018-2019,P3,"The Film Farm Inc.",Toronto,Ontario,Canada,"English Child (The)",English,Horror,2018-10-30,97534.00,25672.00,Advance,"Development Program","Amended contract signed  28-JAN-15"
2018-2019,P3,"Attraction Images inc.",Montreal,Quebec,Canada,Cupidon,French,"Romantic Comedy",2018-11-05,88697.00,23500.00,Advance,"Development Program","Amended contract signed  16-NOV-16"
2018-2019,P3,"Brightlight Pictures Development Inc.",Burnaby,"British Columbia",Canada,"Collapse of Dignity",English,"Drama (Film)",2018-11-21,0.00,15000.00,Advance,"Development Program","Amended contract signed  16-FEB-17"
2018-2019,P3,"Swear Net Holdings Incorporated",Dartmouth,"Nova Scotia",Canada,"Trailer Park Boys 4:20",English,Comedy,2018-11-26,0.00,74975.00,Advance,"Development Program","Amended contract signed  06-JAN-15"
2018-2019,P3,"9086-6351 Qu�bec Inc. (Les films du passeur)","Saint-Paulin ",Quebec,Canada,"Oncle Bernard - L'anti-le�on d'�conomie",French,Documentary,2018-11-28,7131.00,7500.00,Advance,"Marketing Program","Amended contract signed  04-FEB-16"
2018-2019,P3,"Productions Pixcom Inc.",Montreal,Quebec,Canada,"projet Sam",French,"Drama (Film)",2018-11-29,428090.00,200000.00,Advance,"Development Program","Amended contract signed  02-DEC-16"
2018-2019,P3,"Raven Banner Releasing Inc.",Toronto,Ontario,Canada,"Todd & The Book of Pure Evil: The End of The End",English,Comedy,2018-12-07,142842.00,19350.00,Advance,"Marketing Program","Amended contract signed  09-MAR-17"
2018-2019,P3,"Productions Miraculum Inc.",Montreal,Quebec,Canada,"Nous sommes les autres",French,Drama,2018-10-31,1200000.00,1150000.00,Advance,"Production Program","Amended Contract Signed 11-Oct-2016"
2018-2019,P3,"Our House Films Canada Inc.",Toronto,Ontario,Canada,"Our House",English,Drama,2018-11-28,2136034.00,2300000.00,Investment,"Production Program","Amended Contract Signed 10-Jun-2016"
2018-2019,P3,"Groupe TVA inc. (Faisant affaires sous le nom de TVA Films)",Montreal,Quebec,Canada,"Initiative iTunes - Canada 150 (TVA films)",,,2018-11-15,5285.00,6500.00,Contribution,"Promotion Program","Amended Contract Signed 13-Jul-2017"
2018-2019,P3,"REMSTAR FILMS INC.",Montreal,Quebec,Canada,"Initiative iTunes - Canada 150 (Remstar films)",,,2018-11-30,5902.00,5733.00,Contribution,"Promotion Program","Amended Contract Signed 13-Jun-2017"
2018-2019,P3,"A71 Entertainment Inc.",Toronto,Ontario,Canada,"An American Dream: The Education of William Bowman",English,,2018-11-19,54774.00,76000.00,Advance,"Marketing Program","Amended Contract Signed 05-May-2017"
2018-2019,P3,"1961846 Ontario Inc.",Toronto,Ontario,Canada,"Nobody Famous",English,Comedy,2018-11-06,45957.00,50000.00,Contribution,"Production Program","Amended Contract Signed 22-Aug-2017"
2018-2019,P3,"Productions du Rapide-Blanc Inc. (Les)",Montreal,Quebec,Canada,"Qu�bec My Country Mon Pays",French,Documentary,2018-10-17,11159.00,14000.00,Advance,"Marketing Program","Amended Contract Signed 04-Aug-2017"
2018-2019,P3,"T�l�fiction Distribution et Marketing Inc.",Montreal,Quebec,Canada,"Rois mongols (Les)",French,Drama,2018-10-09,308294.00,317613.00,Advance,"Marketing Program","Amended Contract Signed 11-Sep-2017"
2018-2019,P3,"Sienna Films Productions XVII Inc.",Toronto,Ontario,Canada,"Sweetness In The Belly",English,Drama,2018-11-27,1247583.00,1247583.00,Investment,"Production Program",
2018-2019,P3,"Films S�ville Inc. (Les)",Montreal,Quebec,Canada,"Un sac de billes",French,,2018-11-28,82891.00,88416.00,Advance,"Marketing Program","Amended Contract Signed 23-Mar-2018"
2018-2019,P3,"Search Engine Films Inc.",Toronto,Ontario,Canada,Sundowners,English,,2018-10-12,48969.00,56666.00,Advance,"Marketing Program","Amended Contract Signed 19-Dec-2017"
2018-2019,P3,"Funfilm Distribution Inc.",Montreal,Quebec,Canada,"Les d�poss�d�s",French,,2018-10-12,18267.00,20000.00,Advance,"Marketing Program","Amended Contract Signed 09-Jan-2018"
2018-2019,P3,"9212-5913 Qu�bec inc.",Montreal,Quebec,Canada,"Misogynie 2.0",French,Documentary,2018-10-25,125000.00,125000.00,Contribution,"Theatrical Documentary Program",
2018-2019,P3,"Illusions of Control Film Inc.",Vancouver,"British Columbia",Canada,"Illusions of Control",English,Documentary,2018-11-19,125000.00,125000.00,Investment,"Theatrical Documentary Program",
2018-2019,P3,"Les Films Mafia inc.",Montreal,Quebec,Canada,"Mafia Inc.",French,Mystery/Crime/Police,2018-11-21,3024000.00,3024000.00,Advance,"Production Program",
2018-2019,P3,"Axia Films inc.",Montreal,Quebec,Canada,"Y'EST OU LE PARADIS",French,Drama,2018-11-16,36260.00,40000.00,Advance,"Marketing Program","Amended Contract Signed 02-Feb-2018"
2018-2019,P3,"Films S�ville Inc. (Les)",Montreal,Quebec,Canada,"Double Peine",French,,2018-11-26,32289.00,45305.00,Advance,"Marketing Program","Amended Contract Signed 23-Mar-2018"
2018-2019,P3,"Films Christal, s.e.c.(Les), agissant par l'interm�diaire de son commandit�, Les Films Christal Inc",Montreal,Quebec,Canada,"Nous sommes les autres",French,Drama,2018-11-08,63012.00,73952.00,Advance,"Marketing Program","Amended Contract Signed 23-Mar-2018"
2018-2019,P3,"Level Film Inc.",Toronto,Ontario,Canada,"The Death (and Life) of Carl Naardlinger",English,,2018-12-13,24589.00,25161.00,Advance,"Marketing Program","Amended Contract Signed 13-Mar-2018"
2018-2019,P3,"D Films Corporation",Toronto,Ontario,Canada,Clara,English,,2018-11-21,318188.00,165656.00,Advance,"Marketing Program","Amended Contract Signed 12-Feb-2018"
2018-2019,P3,"Groupe TVA inc. (Faisant affaires sous le nom de TVA Films)",Montreal,Quebec,Canada,"Someone Else's Wedding",English,"Romantic Comedy",2018-10-19,25978.00,25978.00,Advance,"Marketing Program",
2018-2019,P3,"Entract Films Inc.",Montreal,Quebec,Canada,"LES SC�NES FORTUITES",French,Comedy,2018-11-14,32935.00,37575.00,Advance,"Marketing Program","Amended Contract Signed 07-Feb-2018"
2018-2019,P3,"9183-5942 Qu�bec inc.",Montreal,Quebec,Canada,Pomp�i,French,Drama,2018-10-25,270000.00,270000.00,Investment,"Production Program",
2018-2019,P3,"Level Film Inc.",Toronto,Ontario,Canada,Juggernaut,English,,2018-11-26,26789.00,30000.00,Advance,"Marketing Program","Amended Contract Signed 17-Apr-2018"
2018-2019,P3,"Rhombus On The Lake Inc.",Toronto,Ontario,Canada,"Clifton Hill",English,Mystery/Crime/Police,2018-10-12,2695000.00,2695000.00,Investment,"Production Program",
2018-2019,P3,"Raven Banner Releasing Inc.",Toronto,Ontario,Canada,"The Go-Getters",English,Comedy,2018-12-13,15015.00,15015.00,Advance,"Marketing Program",
2018-2019,P3,"Baldy Film  Inc.",Toronto,Ontario,Canada,Baldy,English,Drama,2018-11-19,450000.00,450000.00,Contribution,"Production Program",
2018-2019,P3,"Cold Season Films, Inc.","PETTY HARBOUR",Newfoundland/Labrador,Canada,"A Fire In The Cold Season",English,Drama,2018-10-26,238000.00,238000.00,Investment,"Production Program",
2018-2019,P3,"Sparrow & Crow Films Inc.",Gibsons,"British Columbia",Canada,"Monkey Beach",English,Drama,2018-10-17,1739500.00,1739500.00,Investment,"Production Program",
2018-2019,P3,"Tammy Productions Inc.",Oakville,Ontario,Canada,"Tammy's Always Dying",English,Drama,2018-11-29,500000.00,500000.00,Investment,"Production Program",
2018-2019,P3,"1992101 Ontario Inc.",Toronto,Ontario,Canada,"Akilla's Escape",English,Drama,2018-11-21,375000.00,375000.00,Investment,"Production Program",
2018-2019,P3,"D Films Corporation",Toronto,Ontario,Canada,"Sharkwater: Extinction",English,,2018-10-10,948187.00,948187.00,Advance,"Marketing Program",
2018-2019,P3,"Pedro Pires inc.",Montreal,Quebec,Canada,"Alexandre (aka L'homme � la mer / Perdu en mer)",French,Drama,2018-10-18,125000.00,125000.00,Contribution,"Production Program",
2018-2019,P3,"Spectrum Movie Canada Inc.",Toronto,Ontario,Canada,"The Nest",English,Drama,2018-10-15,1200000.00,1200000.00,Investment,"Production Program",
2018-2019,P3,"Fondation Qu�bec cin�ma",Montreal,Quebec,Canada,"Gala Qu�bec Cin�ma",,,2018-11-26,502144.00,302144.00,Contribution,"Promotion Program","Amended Contract Signed 27-Jun-2018"
2018-2019,P3,"R�alisatrices �quitables",Montreal,Quebec,Canada,"Cin�-club Les Dames des vues",,,2018-11-18,10000.00,10000.00,Contribution,"Promotion Program",
2018-2019,P3,"Hot Docs",Toronto,Ontario,Canada,"Hot Docs Festival and Market",,,2018-11-05,350000.00,350000.00,Contribution,"Promotion Program",
2018-2019,P3,"Guest of Honour Films Inc.",Toronto,Ontario,Canada,"Guest of Honour",English,Drama,2018-10-29,2000000.00,2000000.00,Investment,"Production Program",
2018-2019,P3,"9378-3504 Qu�bec inc.",Montreal,Quebec,Canada,"Tu te souviendras de moi",French,Drama,2018-10-04,1725000.00,1725000.00,Investment,"Production Program",
2018-2019,P3,"Film Zone Inc.",Moncton,"New Brunswick",Canada,"Festival international du cin�ma francophone en Acadie",,,2018-11-07,52808.00,52808.00,Contribution,"Promotion Program",
2018-2019,P3,"Eye Steel Film Distribution inc.",Montreal,Quebec,Canada,"Anote's Ark",English,Documentary,2018-11-28,31000.00,31000.00,Advance,"Marketing Program",
2018-2019,P3,"Process Entertainment Inc.",Toronto,Ontario,Canada,S.O.S.,English,,2018-10-15,1500.00,1500.00,Contribution,"International Marketing Program",
2018-2019,P3,"Canadian Film Institute",Ottawa,Ontario,Canada,"The Ottawa International Animation Festival",,,2018-10-26,44002.00,44002.00,Contribution,"Promotion Program",
2018-2019,P3,"Pixel Qu�bec",Qu�bec,Quebec,Canada,"Cartoon Connection 2018",,,2018-10-19,40000.00,40000.00,Contribution,"Promotion Program",
2018-2019,P3,"Level Film Inc.",Toronto,Ontario,Canada,"Octavio is Dead!",English,,2018-10-04,23265.00,23265.00,Advance,"Marketing Program",
2018-2019,P3,"Level Film Inc.",Toronto,Ontario,Canada,"Octavio is Dead!",English,,2018-12-20,17663.00,23265.00,Advance,"Marketing Program","Amended Contract Signed 04-Oct-2018"
2018-2019,P3,"Cin�math�que Qu�b�coise",Montreal,Quebec,Canada,"Les Sommets du cin�ma d'animation",,,2018-10-23,10000.00,10000.00,Contribution,"Promotion Program",
2018-2019,P3,"New Real Films Inc.",Toronto,Ontario,Canada,Kipkemboi,English,Drama,2018-11-15,20000.00,20000.00,Advance,"Development Program",
2018-2019,P3,"Maison 4:3 Inc.",Montreal,Quebec,Canada,Pachamama,French,,2018-12-18,75000.00,75000.00,Advance,"Marketing Program",
2018-2019,P3,"Farpoint Films Inc.",Winnipeg,Manitoba,Canada,"An Accident of Time and Place",English,Drama,2018-12-13,15000.00,15000.00,Advance,"Development Program",
2018-2019,P3,"Farpoint Films Inc.",Winnipeg,Manitoba,Canada,Wintertide,English,Horror,2018-12-13,15000.00,15000.00,Advance,"Development Program",
2018-2019,P3,"Jane Losa Films Inc.",Montreal,Quebec,Canada,"AVEC MAX (Aka Get lost with Max)",French,Drama,2018-12-18,15000.00,15000.00,Advance,"Development Program",
2018-2019,P3,"Raven Banner Releasing Inc.",Toronto,Ontario,Canada,Knuckleball,English,,2018-10-02,54037.00,54037.00,Advance,"Marketing Program",
2018-2019,P3,"Little Bear Productions Inc.",Fredericton,"New Brunswick",Canada,"Queen of the Andes",English,"Science fiction/Fantasy/Tale",2018-11-08,125000.00,125000.00,Contribution,"Talent To Watch Program",
2018-2019,P3,"Picture Plant Limited",Lunenburg,"Nova Scotia",Canada,"HAPPY CLEAN",English,Action/Adventure,2018-11-20,15000.00,15000.00,Advance,"Development Program",
2018-2019,P3,"Picture Plant Limited",Lunenburg,"Nova Scotia",Canada,BYSTANDERS,English,Drama,2018-11-20,15000.00,15000.00,Advance,"Development Program",
2018-2019,P3,"Picture Plant Limited",Lunenburg,"Nova Scotia",Canada,"DAWN, HER DAD AND THE TRACTOR",English,Drama,2018-11-20,15000.00,15000.00,Advance,"Development Program",
2018-2019,P3,"Picture Plant Limited",Lunenburg,"Nova Scotia",Canada,"THE APARTMENT",English,Horror,2018-11-20,15000.00,15000.00,Advance,"Development Program",
2018-2019,P3,"Festival Fantasia",Montreal,Quebec,Canada,"Festival Fantasia incluant Fronti�res",,,2018-12-10,228719.00,223719.00,Contribution,"Promotion Program","Amended Contract Signed 06-Aug-2018"
2018-2019,P3,"2644914 Ontario Inc.",Toronto,Ontario,Canada,"Gay Mean Girls: The Web series",English,Drama,2018-10-01,125000.00,125000.00,Contribution,"Talent To Watch Program",
2018-2019,P3,"9381-4911 Qu�bec inc.",Boisbriand,Quebec,Canada,"La Marina",French,Comedy,2018-11-13,125000.00,125000.00,Contribution,"Talent To Watch Program",
2018-2019,P3,"Chemin�e Deux Inc.",Laval,Quebec,Canada,"Une forteresse",French,,2018-11-07,1700.00,1700.00,Contribution,"International Marketing Program",
2018-2019,P3,"Les Productions du Cerf-Volant Inc.",Sherbrooke,Quebec,Canada,"Portfolio | Portefeuille 2018-2019 Les Productions du Cerf-Volant Inc.",French,,2018-12-17,15000.00,15000.00,Advance,"Development Program",
2018-2019,P3,"Les Productions du Cerf-Volant Inc.",Sherbrooke,Quebec,Canada,"No�l des Anges",French,Drama,2018-12-17,15000.00,15000.00,Advance,"Development Program",
2018-2019,P3,"Cin�mental inc.",Winnipeg,Manitoba,Canada,"Cin�mental 2018",,,2018-10-23,4046.00,4046.00,Contribution,"Promotion Program",
2018-2019,P3,"C&Y Cinema Ltd.",Toronto,Ontario,Canada,"Veslemoy's Song",English,,2018-12-11,1700.00,1700.00,Contribution,"International Marketing Program",
2018-2019,P3,"Festival du film de l'Outaouais",Montreal,Quebec,Canada,"Festival du film de l'Outaouais",,,2018-12-17,21069.00,21069.00,Contribution,"Promotion Program",
2018-2019,P3,"KRH film Inc.",Montreal,Quebec,Canada,Touched,English,,2018-10-17,30000.00,30000.00,Advance,"Marketing Program",
2018-2019,P3,"9381-3699 Quebec Inc.",Montreal,Quebec,Canada,"Moment One",English,"Science fiction/Fantasy/Tale",2018-11-30,125000.00,125000.00,Contribution,"Talent To Watch Program",
2018-2019,P3,"Just Focus Films Inc.",Waterloo,Ontario,Canada,Qu�bexit,English,Comedy,2018-12-04,125000.00,125000.00,Contribution,"Talent To Watch Program",
2018-2019,P3,"Artemis Films Inc.",Montreal,Quebec,Canada,"The End of Wonderland (a.k.a. Tara)",English,Documentary,2018-10-31,125000.00,125000.00,Contribution,"Talent To Watch Program",
2018-2019,P3,"2664848 Ontario Inc.",Toronto,Ontario,Canada,"Le Corbeau",English,Action/Adventure,2018-12-06,125000.00,125000.00,Contribution,"Talent To Watch Program",
2018-2019,P3,"9377-3570 Qu�bec inc.",Montreal,Quebec,Canada,"Damascus Dreams",French,Documentary,2018-10-29,125000.00,125000.00,Contribution,"Talent To Watch Program",
2018-2019,P3,"DBD Productions Inc.",Regina,Saskatchewan,Canada,"Mercy (formerly Q)",English,Drama,2018-12-04,125000.00,125000.00,Contribution,"Talent To Watch Program",
2018-2019,P3,"2645850 ONTARIO INC.",Toronto,Ontario,Canada,Jump,English,Drama,2018-11-28,125000.00,125000.00,Contribution,"Talent To Watch Program",
2018-2019,P3,"1173166 B.C. Ltd.",Vancouver,"British Columbia",Canada,"Be Still",English,Drama,2018-11-26,125000.00,125000.00,Contribution,"Talent To Watch Program",
2018-2019,P3,"Isuma Distribution International Ltd.",Montreal,Quebec,Canada,"Edge of the Knife",English,,2018-12-17,180000.00,180000.00,Advance,"Marketing Program",
2018-2019,P3,"Bone Cage Productions Inc.",Williamswood,"Nova Scotia",Canada,"Bone Cage",English,Drama,2018-11-22,125000.00,125000.00,Contribution,"Talent To Watch Program",
2018-2019,P3,"There's No Place Like This Place Inc.",Toronto,Ontario,Canada,"There's No Place Like This Place, Anyplace",English,Documentary,2018-11-01,125000.00,125000.00,Contribution,"Talent To Watch Program",
2018-2019,P3,"Meilleur Avant Productions Inc.",Toronto,Ontario,Canada,"Meilleur avant",French,Comedy,2018-11-30,105000.00,105000.00,Contribution,"Talent To Watch Program",
2018-2019,P3,"Isuma Distribution International Ltd.",Montreal,Quebec,Canada,"Tia and Piujuq",English,,2018-12-17,180000.00,180000.00,Advance,"Marketing Program",
2018-2019,P3,"Festival Pleins �crans",Montreal,Quebec,Canada,"Festival Plein(s) �cran(s)",,,2018-12-21,20000.00,20000.00,Contribution,"Promotion Program",
2018-2019,P3,"TAK FILMS INC.",Montreal,Quebec,Canada,"Note de passage",French,Drama,2018-11-26,125000.00,125000.00,Contribution,"Talent To Watch Program",
2018-2019,P3,"Bleed With Me Film Inc.",Verdun,Quebec,Canada,"Bleed With Me",English,Thriller,2018-10-19,124923.00,124923.00,Contribution,"Talent To Watch Program",
2018-2019,P3,"2647287 Ontario Inc.",Toronto,Ontario,Canada,Scarborough,English,Drama,2018-10-02,125000.00,125000.00,Contribution,"Talent To Watch Program",
2018-2019,P3,"Funfilm Distribution Inc.",Montreal,Quebec,Canada,OSCILLATIONS,French,Drama,2018-12-17,13000.00,13000.00,Advance,"Marketing Program",
2018-2019,P3,"1UTT Productions Inc.",Toronto,Ontario,Canada,"Once Upon a Time in Tehranto",English,"Romantic Comedy",2018-10-25,125000.00,125000.00,Contribution,"Talent To Watch Program",
2018-2019,P3,"The Standard Model Inc.",Toronto,Ontario,Canada,"RIGHT BETWEEN THE EYES",English,Thriller,2018-12-17,125000.00,125000.00,Contribution,"Talent To Watch Program",
2018-2019,P3,"2129313 ALBERTA INC.",Calgary,Alberta,Canada,"Events Transpiring...",English,Comedy,2018-11-06,125000.00,125000.00,Contribution,"Talent To Watch Program",
2018-2019,P3,"Shining Trauma Pictures Inc",Toronto,Ontario,Canada,"Spawn and Geezer",English,Documentary,2018-10-05,125000.00,125000.00,Contribution,"Talent To Watch Program",
2018-2019,P3,"Houseplant Films Inc.",Darmouth,"Nova Scotia",Canada,Murmur,English,Drama,2018-10-19,125000.00,125000.00,Contribution,"Talent To Watch Program",
2018-2019,P3,"Songs She Sings in Shadows Inc.",Toronto,Ontario,Canada,"Songs She Sings in Shadows",English,Documentary,2018-10-25,125000.00,125000.00,Contribution,"Talent To Watch Program",
2018-2019,P3,"Orange M�dias Inc.",Rosem�re,Quebec,Canada,"Le Boss des b�cosses",French,Comedy,2018-12-17,25000.00,25000.00,Advance,"Development Program",
2018-2019,P3,"Orange M�dias Inc.",Rosem�re,Quebec,Canada,"Ni Nonne ni pute",French,"Historical Drama",2018-12-17,15000.00,15000.00,Advance,"Development Program",
2018-2019,P3,"LTS Film Inc.",Toronto,Ontario,Canada,"Learn to Swim",English,Drama,2018-12-21,125000.00,125000.00,Contribution,"Talent To Watch Program",
2018-2019,P3,"2033161 Ontario Limited",Toronto,Ontario,Canada,"Carmine Street Guitars",English,,2018-10-31,25000.00,25000.00,Contribution,"International Marketing Program",
2018-2019,P3,"10022390 Manitoba Ltd.",Winnipeg,Manitoba,Canada,Billy,English,Thriller,2018-12-03,125000.00,125000.00,Contribution,"Talent To Watch Program",
2018-2019,P3,"Nice Is Cool Films Inc.",Toronto,Ontario,Canada,Worms,English,Comedy,2018-10-17,125000.00,125000.00,Contribution,"Talent To Watch Program",
2018-2019,P3,"Easy Land Pictures Corporation",Toronto,Ontario,Canada,Easyland,English,Drama,2018-10-15,125000.00,125000.00,Contribution,"Talent To Watch Program",
2018-2019,P3,"Blue Lake Films Ltd.",Victoria,"British Columbia",Canada,"All-In Madonna",English,Drama,2018-12-05,125000.00,125000.00,Contribution,"Talent To Watch Program",
2018-2019,P3,"2033161 Ontario Limited",Toronto,Ontario,Canada,"Carmine Street Guitars",English,,2018-12-04,1500.00,1500.00,Contribution,"International Marketing Program",
2018-2019,P3,"Intuitive Pictures Inc.",Montreal,Quebec,Canada,"The Oslo Diaries",English,Documentary,2018-10-12,19923.00,19923.00,Advance,"Marketing Program",
2018-2019,P3,"Possibles M�dia inc.",Montreal,Quebec,Canada,"Isle de Bois",French,Western,2018-10-04,1500.00,1500.00,Contribution,"International Marketing Program",
2018-2019,P3,"Echo Media Inc.",Montreal,Quebec,Canada,"Rois mongols (Les)",French,Drama,2018-11-05,1500.00,1500.00,Contribution,"International Marketing Program",
2018-2019,P3,"Lunenburg Doc Fest Association",Lunenburg,"Nova Scotia",Canada,"Lunenburg Doc Fest",,,2018-10-04,2500.00,2500.00,Contribution,"Promotion Program",
2018-2019,P3,"The Hunting Party Inc.",St-John's,Newfoundland/Labrador,Canada,"Incredible Violence",English,,2018-12-18,4500.00,4500.00,Contribution,"International Marketing Program",
2018-2019,P3,"Films Christal, s.e.c.(Les), agissant par l'interm�diaire de son commandit�, Les Films Christal Inc",Montreal,Quebec,Canada,"Dans la brume",French,,2018-11-21,135581.00,135581.00,Advance,"Marketing Program",
2018-2019,P3,"Independent Edge Films Inc.",Vancouver,"British Columbia",Canada,"The New Romantic (formerly The Undergraduate)",English,Comedy,2018-10-31,1500.00,1500.00,Contribution,"International Marketing Program",
2018-2019,P3,"Solo Productions Inc.",Toronto,Ontario,Canada,"ARMSTRONGS WAR",English,Drama,2018-10-31,15000.00,15000.00,Advance,"Development Program",
2018-2019,P3,"Solo Productions Inc.",Toronto,Ontario,Canada,"On My Holy Mountain",English,Thriller,2018-10-31,20000.00,20000.00,Advance,"Development Program",
2018-2019,P3,"Lady Hammond Entertainment Inc.",Dartmouth,"Nova Scotia",Canada,"When The Saints",English,Drama,2018-11-23,15000.00,15000.00,Advance,"Development Program",
2018-2019,P3,"Lady Hammond Entertainment Inc.",Dartmouth,"Nova Scotia",Canada,Petropaths,English,"Science fiction/Fantasy/Tale",2018-11-23,15000.00,15000.00,Advance,"Development Program",
2018-2019,P3,"Festival international du film pour enfants de Montr�al",Montreal,Quebec,Canada,"Festival International du Film pour Enfants de Montr�al",,,2018-10-23,16223.00,16223.00,Contribution,"Promotion Program",
2018-2019,P3,"Ruthless Souls Film Inc",Winnipeg,Manitoba,Canada,"Ruthless souls",English,Drama,2018-10-25,125000.00,125000.00,Contribution,"Talent To Watch Program",
2018-2019,P3,"Achromatic Media Inc.",Montreal,Quebec,Canada,Fauve,French,Drama,2018-11-01,1700.00,1700.00,Contribution,"International Marketing Program",
2018-2019,P3,"L'OEIL VIF (Faisant affaire sous le nom Les Films du 3 mars)",Montreal,Quebec,Canada,Primas,French,,2018-12-11,15000.00,15000.00,Advance,"Marketing Program",
2018-2019,P3,"Canadian Media Producers Association - Association canadienne de la production m�diatique",Toronto,Ontario,Canada,"VIFF IMMERSIVE",,,2018-10-04,20000.00,20000.00,Contribution,"Promotion Program",
2018-2019,P3,"Women In View",Toronto,Ontario,Canada,"FIVE IN FOCUS: ANIMATION (BC)",,,2018-10-22,15000.00,15000.00,Contribution,"Promotion Program",
2018-2019,P3,"Filmoption International Inc.",Westmount,Quebec,Canada,"Un printemps d'ailleurs",French,,2018-11-13,30000.00,30000.00,Advance,"Marketing Program",
2018-2019,P3,"MMM Film Finance International Ltd.",Surrey,"British Columbia",Canada,"Of Heaven And Hell",English,Thriller,2018-11-20,15000.00,15000.00,Advance,"Development Program",
2018-2019,P3,"Woods Entertainment Canada Inc.",Toronto,Ontario,Canada,"Civil Disobedience",English,Thriller,2018-12-17,15000.00,15000.00,Advance,"Development Program",
2018-2019,P3,"Connections Productions Inc.",Bedford,"Nova Scotia",Canada,"Sauver Charlotte!",French,"Science fiction/Fantasy/Tale",2018-10-17,15000.00,15000.00,Advance,"Development Program",
2018-2019,P3,"Perfect Pictures Inc.",Calgary,Alberta,Canada,"Rogues and Renegades",English,"Science fiction/Fantasy/Tale",2018-11-15,15000.00,15000.00,Advance,"Development Program",
2018-2019,P3,"Savath Pictures Inc.",Vancouver,"British Columbia",Canada,Northland,English,Comedy,2018-10-23,15000.00,15000.00,Advance,"Development Program",
2018-2019,P3,"�a Tourne Productions Ltee.",Caraquet,"New Brunswick",Canada,"LE TROU DU CUL DU MONDE",French,Comedy,2018-12-18,15000.00,15000.00,Advance,"Development Program",
2018-2019,P3,"Motel Pictures Inc.",Toronto,Ontario,Canada,"Heidegger Stairwell",English,Drama,2018-11-06,15000.00,15000.00,Advance,"Development Program",
2018-2019,P3,"Groupe TVA inc. (Faisant affaires sous le nom de TVA Films)",Montreal,Quebec,Canada,Wolfe,French,Drama,2018-12-11,50424.00,50424.00,Advance,"Marketing Program",
2018-2019,P3,"Canadian Media Producers Association - Association canadienne de la production m�diatique",Toronto,Ontario,Canada,"Prime Time conference, Marketing Mentorship Program",,,2018-10-22,65000.00,65000.00,Contribution,"Promotion Program",
2018-2019,P3,"Front des r�alisateurs ind�pendants du Canada (FRIC)",Ottawa,Ontario,Canada,"Initiatives du FRIC pour les r�alisateurs issus des CLOSM",,,2018-10-23,20000.00,20000.00,Contribution,"Promotion Program",
2018-2019,P3,"Bunbury Films Inc.",Montreal,Quebec,Canada,"Du ventre au coeur",French,Drama,2018-10-18,15000.00,15000.00,Advance,"Development Program",
2018-2019,P3,"Mad Samurai Productions Inc.",Richmond,"British Columbia",Canada,"Beyond The Limit",English,Action/Adventure,2018-12-12,15000.00,15000.00,Advance,"Development Program",
2018-2019,P3,"Mad Samurai Productions Inc.",Richmond,"British Columbia",Canada,"Hard Home",English,Horror,2018-12-12,21700.00,21700.00,Advance,"Development Program",
2018-2019,P3,"Mad Samurai Productions Inc.",Richmond,"British Columbia",Canada,Trust/Fall,English,Thriller,2018-12-12,15000.00,15000.00,Advance,"Development Program",
2018-2019,P3,"Mad Samurai Productions Inc.",Richmond,"British Columbia",Canada,ZED,English,Thriller,2018-12-12,23300.00,23300.00,Advance,"Development Program",
2018-2019,P3,"Entertainment One Films Canada Inc.",Toronto,Ontario,Canada,"Little Italy",English,,2018-11-16,1043640.00,1043640.00,Advance,"Marketing Program",
2018-2019,P3,"Visaff South Asian Film Festival Society",Surrey,"British Columbia",Canada,"Vancouver International South Asian Film Festival",,,2018-11-09,5000.00,5000.00,Contribution,"Promotion Program",
2018-2019,P3,"Amazing Factory Productions Inc.",Vancouver,"British Columbia",Canada,Offsides,English,Comedy,2018-12-19,15000.00,15000.00,Advance,"Development Program",
2018-2019,P3,"Amazing Factory Productions Inc.",Vancouver,"British Columbia",Canada,"Sometimes You Miss It",English,Drama,2018-12-19,15000.00,15000.00,Advance,"Development Program",
2018-2019,P3,"White Pine Pictures Inc.",Toronto,Ontario,Canada,Dreamers,English,"Historical Drama",2018-11-27,15000.00,15000.00,Advance,"Development Program",
2018-2019,P3,"Les Productions des Films de l'Autre Inc.",Montreal,Quebec,Canada,"La position des astres",French,Drama,2018-10-22,17500.00,17500.00,Advance,"Development Program",
2018-2019,P3,"Les Productions des Films de l'Autre Inc.",Montreal,Quebec,Canada,"S�lection Naturelle",French,Drama,2018-10-22,17500.00,17500.00,Advance,"Development Program",
2018-2019,P3,"Metafilms Inc.",Montreal,Quebec,Canada,Lhasa,English,Documentary,2018-10-22,23218.00,23218.00,Advance,"Development Program",
2018-2019,P3,"Metafilms Inc.",Montreal,Quebec,Canada,"Le plein potentiel",French,Documentary,2018-10-22,15120.00,15120.00,Advance,"Development Program",
2018-2019,P3,"Metafilms Inc.",Montreal,Quebec,Canada,"La prunelle de tes yeux",French,Drama,2018-10-22,61040.00,61040.00,Advance,"Development Program",
2018-2019,P3,"Metafilms Inc.",Montreal,Quebec,Canada,"Simple comme Sylvain",French,Drama,2018-10-22,61040.00,61040.00,Advance,"Development Program",
2018-2019,P3,"JA Productions Inc.",Oakville,Ontario,Canada,"Tammy's Always Dying",English,Drama,2018-10-18,1500.00,1500.00,Contribution,"International Marketing Program",
2018-2019,P3,"9348-8310 Qu�bec inc.",Montreal,Quebec,Canada,"Charlotte a du fun",French,Comedy,2018-12-04,1500.00,1500.00,Contribution,"International Marketing Program",
2018-2019,P3,"LES PRODUCTIONS KINESIS INC.",Montreal,Quebec,Canada,"La route de Chlifa",French,Drama,2018-10-22,15000.00,15000.00,Advance,"Development Program",
2018-2019,P3,"Eye Steel Film Distribution inc.",Montreal,Quebec,Canada,"Coproduction market - no specific project",English,,2018-12-18,1500.00,1500.00,Contribution,"International Marketing Program",
2018-2019,P3,"2412658 Ontario Inc.",Toronto,Ontario,Canada,"The Anything Machine",English,Drama,2018-10-11,15000.00,15000.00,Advance,"Development Program",
2018-2019,P3,"Geordie Sabbagh Productions Inc.",Toronto,Ontario,Canada,"Somewhere There's Music",English,Drama,2018-10-16,15000.00,15000.00,Advance,"Development Program",
2018-2019,P3,"8439222 Canada Inc. (faisant affaires sous le nom de SMT Features)",Saint-F�licien,Quebec,Canada,"Portfolio | Portefeuille 2018-2019 8439222 Canada Inc. (faisant affaires sous le nom de SMT Features)",French,,2018-12-14,15000.00,15000.00,Advance,"Development Program",
2018-2019,P3,"Rink Rat Productions Inc.","St. John's",Newfoundland/Labrador,Canada,"A Bay Story",English,Comedy,2018-12-13,27063.00,27063.00,Advance,"Development Program",
2018-2019,P3,"Rink Rat Productions Inc.","St. John's",Newfoundland/Labrador,Canada,"Brotherly Love",English,Drama,2018-12-13,22642.00,22642.00,Advance,"Development Program",
2018-2019,P3,"Rink Rat Productions Inc.","St. John's",Newfoundland/Labrador,Canada,Shimmer,English,Drama,2018-12-13,40295.00,40295.00,Advance,"Development Program",
2018-2019,P3,"Manito M�dia Inc.",Winnipeg,Manitoba,Canada,"Le myst�re H�mon",French,Drama,2018-11-20,15000.00,15000.00,Advance,"Development Program",
2018-2019,P3,"9281-8269 Qu�bec Inc.",St-Bruno,Quebec,Canada,"Un sens critique",French,Documentary,2018-12-13,15000.00,15000.00,Advance,"Development Program",
2018-2019,P3,"9348-8310 Qu�bec inc.",Montreal,Quebec,Canada,"Charlotte a du fun",French,Comedy,2018-11-29,1500.00,1500.00,Contribution,"International Marketing Program",
2018-2019,P3,"9348-8310 Qu�bec inc.",Montreal,Quebec,Canada,"Charlotte a du fun",French,Comedy,2018-12-04,1500.00,1500.00,Contribution,"International Marketing Program",
2018-2019,P3,"Scarborough Pictures Inc.",Toronto,Ontario,Canada,SHOOK,English,Drama,2018-10-20,15000.00,15000.00,Advance,"Development Program",
2018-2019,P3,"P�riph�ria Productions Inc.",Montreal,Quebec,Canada,"NO MEAN DREAM",English,Comedy,2018-11-06,15000.00,15000.00,Advance,"Development Program",
2018-2019,P3,"Hutte Films Inc.",Montreal,Quebec,Canada,"Lunar-Orbit Rendez-vous",French,"Romantic Comedy",2018-11-14,1700.00,1700.00,Contribution,"International Marketing Program",
2018-2019,P3,"Lumanity Productions Inc.",Toronto,Ontario,Canada,"Stolen Moments",English,Drama,2018-12-13,20000.00,20000.00,Advance,"Development Program",
2018-2019,P3,"Echo Media Inc.",Montreal,Quebec,Canada,"Hugo, Celeste et le petit peuple du Nord",French,Action/Adventure,2018-12-18,15000.00,15000.00,Advance,"Development Program",
2018-2019,P3,"Echo Media Inc.",Montreal,Quebec,Canada,EURYDICE,English,Musical,2018-12-18,15000.00,15000.00,Advance,"Development Program",
2018-2019,P3,"Echo Media Inc.",Montreal,Quebec,Canada,"5 Fr�res",French,Mystery/Crime/Police,2018-12-18,25000.00,25000.00,Advance,"Development Program",
2018-2019,P3,"Manifold Pictures Inc.",Calgary,Alberta,Canada,"The Red River",English,"Historical Drama",2018-12-17,15000.00,15000.00,Advance,"Development Program",
2018-2019,P3,"Fluent Films Inc.",Montreal,Quebec,Canada,"Sharing Sharon",English,Comedy,2018-11-19,15000.00,15000.00,Advance,"Development Program",
2018-2019,P3,"Les Productions Galafilm Inc. / Galafilm Productions Inc.",Montreal,Quebec,Canada,"THERE'S A CRACK IN EVERYTHING: LEONARD COHEN, POET OF BROKENNESS (Titre fran�ais: IL Y A UNE FAILLE DANS TOUTE CHOSE)",English,Documentary,2018-12-18,15000.00,15000.00,Advance,"Development Program",
2018-2019,P3,"Les Films du Tricycle Inc.","Les Bergeronnes",Quebec,Canada,"Animal Macula",French,Documentary,2018-11-06,15000.00,15000.00,Advance,"Development Program",
2018-2019,P3,"Quadrant Motion Pictures Inc.",Toronto,Ontario,Canada,"At the End of the World",English,Drama,2018-11-22,15000.00,15000.00,Advance,"Development Program",
2018-2019,P3,"WANGO Films Inc.",Toronto,Ontario,Canada,"The Corners",English,Drama,2018-10-19,20000.00,20000.00,Advance,"Development Program",
2018-2019,P3,"136469 Canada Limited o/a Sphinx Productions",Toronto,Ontario,Canada,"Carmine Street Guitars",English,,2018-11-05,1500.00,1500.00,Contribution,"International Marketing Program",
2018-2019,P3,"136469 Canada Limited o/a Sphinx Productions",Toronto,Ontario,Canada,"Carmine Street Guitars",English,,2018-12-11,1500.00,1500.00,Contribution,"International Marketing Program",
2018-2019,P3,"136469 Canada Limited o/a Sphinx Productions",Toronto,Ontario,Canada,"Carmine Street Guitars",English,,2018-12-11,1500.00,1500.00,Contribution,"International Marketing Program",
2018-2019,P3,"136469 Canada Limited o/a Sphinx Productions",Toronto,Ontario,Canada,"Carmine Street Guitars",English,,2018-12-11,1500.00,1500.00,Contribution,"International Marketing Program",
2018-2019,P3,"Corporation Wapikoni Mobile",Montreal,Quebec,Canada,"Initiative du Wapikoni",,,2018-10-29,50000.00,50000.00,Contribution,"Promotion Program",
2018-2019,P3,"Films du Boulevard Inc.",Montreal,Quebec,Canada,"Devenir un monstre",French,Drama,2018-11-15,15000.00,15000.00,Advance,"Development Program",
2018-2019,P3,"Filmoption International Inc.",Westmount,Quebec,Canada,"Les Salopes ou le sucre naturel de la peau",French,,2018-11-16,97500.00,97500.00,Advance,"Marketing Program",
2018-2019,P3,"The Film Farm Inc.",Toronto,Ontario,Canada,Honourable?,English,Drama,2018-11-21,15000.00,15000.00,Advance,"Development Program",
2018-2019,P3,"The Film Farm Inc.",Toronto,Ontario,Canada,"Lord Only Knows I'm Gone",English,Drama,2018-11-21,54400.00,54400.00,Advance,"Development Program",
2018-2019,P3,"Believerville Productions Inc.",Toronto,Ontario,Canada,"Thought Control",English,Thriller,2018-10-17,15000.00,15000.00,Advance,"Development Program",
2018-2019,P3,"FILMARTO INC.",Montreal,Quebec,Canada,LNI,French,Comedy,2018-11-19,25000.00,25000.00,Advance,"Development Program",
2018-2019,P3,"FILMARTO INC.",Montreal,Quebec,Canada,"Husband, Wife and Maid",English,Mystery/Crime/Police,2018-11-19,18480.00,18480.00,Advance,"Development Program",
2018-2019,P3,"Productions Avenida inc.",Montreal,Quebec,Canada,Mishka,French,Action/Adventure,2018-12-18,15000.00,15000.00,Advance,"Development Program",
2018-2019,P3,"New Brunswick Filmmakers Co-operative Limited",Fredericton,"New Brunswick",Canada,"Silver Wave Film Festival",,,2018-10-30,3000.00,3000.00,Contribution,"Promotion Program",
2018-2019,P3,"Films S�ville Inc. (Les)",Montreal,Quebec,Canada,"Disparition des lucioles (La)",French,Drama,2018-12-04,144937.00,144937.00,Advance,"Marketing Program",
2018-2019,P3,"Vancouver Asian Film Festival Society",Vancouver,"British Columbia",Canada,"Vancouver Asian Film Festival",,,2018-10-18,5000.00,5000.00,Contribution,"Promotion Program",
2018-2019,P3,"Voyelles Films Productions inc.",Montreal,Quebec,Canada,"Sin La Habana",English,Drama,2018-11-28,1500.00,1500.00,Contribution,"International Marketing Program",
2018-2019,P3,"Fratel Films",Montpellier,,France,"Chien de garde",French,Thriller,2018-10-11,20000.00,20000.00,Contribution,"Export Assistance Program",
2018-2019,P3,"Victoria Independent Film and Video Festival",Victoria,"British Columbia",Canada,"Victoria Film Festival and Springboard",,,2018-11-06,32445.00,32445.00,Contribution,"Promotion Program",
2018-2019,P3,"Aircraft Pictures Limited",Toronto,Ontario,Canada,"Daughter of Bells",English,"Science fiction/Fantasy/Tale",2018-11-06,25000.00,25000.00,Advance,"Development Program",
2018-2019,P3,"Sceneries Entertainment Corp.",Burbank,California,"United States",NELLY,French,Drama,2018-11-06,19000.00,19000.00,Contribution,"Export Assistance Program",
2018-2019,P3,"Euclid 431 Pictures Inc.",Toronto,Ontario,Canada,"Giant Little Ones (The)",English,Drama,2018-10-04,4000.00,4000.00,Contribution,"International Marketing Program",
2018-2019,P3,"Les Productions du Moment Inc.",Saint-Basile-le-Grand,Quebec,Canada,"Tu es parfaite",French,Drama,2018-12-18,15000.00,15000.00,Advance,"Development Program",
2018-2019,P3,"Trilight Entertainment Inc.",Calgary,Alberta,Canada,Capricious,English,Thriller,2018-10-17,15000.00,15000.00,Advance,"Development Program",
2018-2019,P3,"Thoughts From The Asylum Productions Ltd.",Vancouver,"British Columbia",Canada,"Winners and Losers",English,Comedy,2018-11-19,35000.00,35000.00,Advance,"Development Program",
2018-2019,P3,"Scythia Films Inc.",Toronto,Ontario,Canada,"Private Dreams and Public Nightmares",English,Horror,2018-12-17,15000.00,15000.00,Advance,"Development Program",
2018-2019,P3,"Scythia Films Inc.",Toronto,Ontario,Canada,Slash/Back,English,"Science fiction/Fantasy/Tale",2018-12-17,15000.00,15000.00,Advance,"Development Program",
2018-2019,P3,"Art et Essai Administration Inc.",Montreal,Quebec,Canada,"Les deux pieds � terre",French,Drama,2018-12-19,20000.00,20000.00,Advance,"Development Program",
2018-2019,P3,"Attraction Images inc.",Montreal,Quebec,Canada,M�tis,French,Comedy,2018-12-13,21364.00,21364.00,Advance,"Development Program",
2018-2019,P3,"Attraction Images inc.",Montreal,Quebec,Canada,Royal,French,Drama,2018-12-13,55822.00,55822.00,Advance,"Development Program",
2018-2019,P3,"Attraction Images inc.",Montreal,Quebec,Canada,Riel,English,"Historical Drama",2018-12-13,70162.00,70162.00,Advance,"Development Program",
2018-2019,P3,"Attraction Images inc.",Montreal,Quebec,Canada,L'apprenti,French,Mystery/Crime/Police,2018-12-13,15000.00,15000.00,Advance,"Development Program",
2018-2019,P3,"Attraction Images inc.",Montreal,Quebec,Canada,"L'�ge des statues",French,"Romantic Comedy",2018-12-13,52651.00,52651.00,Advance,"Development Program",
2018-2019,P3,"Midnight Lamp Films Inc.",Toronto,Ontario,Canada,"Police Woman",English,Documentary,2018-10-31,15000.00,15000.00,Advance,"Development Program",
2018-2019,P3,"Zoofilms Inc.",Mansonville,Quebec,Canada,"Les Internes",French,Musical,2018-10-31,15000.00,15000.00,Advance,"Development Program",
2018-2019,P3,"Amalga Cr�ations M�dias Inc.",Montreal,Quebec,Canada,"Sylvie aime Maurice",French,Musical,2018-11-02,15000.00,15000.00,Advance,"Development Program",
2018-2019,P3,"David Gross Productions Inc.",Toronto,Ontario,Canada,"Deal of a Lifetime",English,Drama,2018-12-06,200000.00,200000.00,Advance,"Development Program",
2018-2019,P3,"Shore Road Pictures Inc.",Fredericton,"New Brunswick",Canada,"A Creeping Normalcy",English,Thriller,2018-11-20,15000.00,15000.00,Advance,"Development Program",
2018-2019,P3,"Aetios Productions Inc.",Saint-Sauveur,Quebec,Canada,"Stanley Cup Bodyguard",French,Comedy,2018-11-19,30000.00,30000.00,Advance,"Development Program",
2018-2019,P3,"Aetios Productions Inc.",Saint-Sauveur,Quebec,Canada,"Une Promesse",French,Drama,2018-11-19,15000.00,15000.00,Advance,"Development Program",
2018-2019,P3,"Neophyte Productions Inc.",Toronto,Ontario,Canada,"Stage 3",English,Thriller,2018-11-26,15000.00,15000.00,Advance,"Development Program",
2018-2019,P3,"GROUPE PVP INC.",Matane,Quebec,Canada,"Terminal Grand Nord",French,Mystery/Crime/Police,2018-10-31,20000.00,20000.00,Advance,"Development Program",
2018-2019,P3,"Sienna Films Inc.",Toronto,Ontario,Canada,"Happy Place",English,Drama,2018-12-17,15000.00,15000.00,Advance,"Development Program",
2018-2019,P3,"Sienna Films Inc.",Toronto,Ontario,Canada,"Take Me To Church",English,"Romantic Comedy",2018-12-17,15000.00,15000.00,Advance,"Development Program",
2018-2019,P3,"8585016 Canada Inc.",Toronto,Ontario,Canada,"Roxham Road",English,Thriller,2018-11-14,15000.00,15000.00,Advance,"Development Program",
2018-2019,P3,"Gorgeous Mistake Productions Inc.",Dartmouth,"Nova Scotia",Canada,Spyderz,English,Horror,2018-12-17,15000.00,15000.00,Advance,"Development Program",
2018-2019,P3,"Bravo Charlie inc.",Montreal,Quebec,Canada,"LE PARIA",French,Thriller,2018-11-06,15000.00,15000.00,Advance,"Development Program",
2018-2019,P3,"Christal Films Productions Inc.",Montreal,Quebec,Canada,"Grande ligue",French,Drama,2018-10-24,44000.00,44000.00,Advance,"Development Program",
2018-2019,P3,"Christal Films Productions Inc.",Montreal,Quebec,Canada,Pornopoly,French,Drama,2018-10-24,36000.00,36000.00,Advance,"Development Program",
2018-2019,P3,"Christal Films Productions Inc.",Montreal,Quebec,Canada,S'enfuir,French,"Historical Drama",2018-10-24,55000.00,55000.00,Advance,"Development Program",
2018-2019,P3,"Christal Films Productions Inc.",Montreal,Quebec,Canada,"Morts de rire",French,Mystery/Crime/Police,2018-10-24,43000.00,43000.00,Advance,"Development Program",
2018-2019,P3,"Christal Films Productions Inc.",Montreal,Quebec,Canada,"La Gu�rite",French,Thriller,2018-10-24,22000.00,22000.00,Advance,"Development Program",
2018-2019,P3,"Arnait Video Productions Inc.",Igloolik,Nunavut,Canada,"Eating souls",English,Documentary,2018-11-29,15000.00,15000.00,Advance,"Development Program",
2018-2019,P3,"Arnait Video Productions Inc.",Igloolik,Nunavut,Canada,"Tia and Piujuq , the sequel (working title)",English,"Science fiction/Fantasy/Tale",2018-11-29,15000.00,15000.00,Advance,"Development Program",
2018-2019,P3,"9106-3545 Qu�bec Inc.",Longueuil,Quebec,Canada,AMERICA,French,Action/Adventure,2018-10-31,15000.00,15000.00,Advance,"Development Program",
2018-2019,P3,"TimeLapse Pictures Productions Inc.",Toronto,Ontario,Canada,Hangar,English,Drama,2018-10-11,15000.00,15000.00,Advance,"Development Program",
2018-2019,P3,"OP Development Inc.",Winnipeg,Manitoba,Canada,"Innercity Girl Like Me",English,Drama,2018-11-08,20000.00,20000.00,Advance,"Development Program",
2018-2019,P3,"Pitchblack Pictures Inc.",Burnaby,"British Columbia",Canada,"UNTITLED FAME PARABLE",English,Drama,2018-11-13,15000.00,15000.00,Advance,"Development Program",
2018-2019,P3,"6710875 Canada inc.",Gatineau,Quebec,Canada,"The Papergirl",English,Thriller,2018-11-14,15000.00,15000.00,Advance,"Development Program",
2018-2019,P3,"Copperheart Entertainment Inc.",Toronto,Ontario,Canada,"BLURRED LINES",English,"Science fiction/Fantasy/Tale",2018-11-13,40000.00,40000.00,Advance,"Development Program",
2018-2019,P3,"Cin�maginaire Inc.",Montreal,Quebec,Canada,"Les Bombes",French,Comedy,2018-12-19,19740.00,19740.00,Advance,"Development Program",
2018-2019,P3,"Cin�maginaire Inc.",Montreal,Quebec,Canada,"P�re et filles ( la fille de son  p�re)",French,Comedy,2018-12-19,59724.00,59724.00,Advance,"Development Program",
2018-2019,P3,"Cin�maginaire Inc.",Montreal,Quebec,Canada,"Divine Illusion",French,Drama,2018-12-19,49716.00,49716.00,Advance,"Development Program",
2018-2019,P3,"Cin�maginaire Inc.",Montreal,Quebec,Canada,"Fille de ma m�re",French,Drama,2018-12-19,15000.00,15000.00,Advance,"Development Program",
2018-2019,P3,"Cin�maginaire Inc.",Montreal,Quebec,Canada,"R�volution 60",French,Drama,2018-12-19,55646.00,55646.00,Advance,"Development Program",
2018-2019,P3,"Cin�maginaire Inc.",Montreal,Quebec,Canada,SAM,French,Drama,2018-12-19,15000.00,15000.00,Advance,"Development Program",
2018-2019,P3,"Groupe Fair-Play Inc.",Montreal,Quebec,Canada,"Samuel de Champlain",French,"Historical Drama",2018-11-20,15000.00,15000.00,Advance,"Development Program",
2018-2019,P3,"H Is For Productions Inc.",Toronto,Ontario,Canada,DERAILED,English,Drama,2018-11-13,20000.00,20000.00,Advance,"Development Program",
2018-2019,P3,"Microscope Inc.",Montreal,Quebec,Canada,"Modern Knots",English,Comedy,2018-12-18,51000.00,51000.00,Advance,"Development Program",
2018-2019,P3,"Microscope Inc.",Montreal,Quebec,Canada,"Soccer War",English,Drama,2018-12-18,60000.00,60000.00,Advance,"Development Program",
2018-2019,P3,"Microscope Inc.",Montreal,Quebec,Canada,Apr�s,French,Drama,2018-12-18,35000.00,35000.00,Advance,"Development Program",
2018-2019,P3,"Microscope Inc.",Montreal,Quebec,Canada,"Les lignes du parc",French,Drama,2018-12-18,39000.00,39000.00,Advance,"Development Program",
2018-2019,P3,"Microscope Inc.",Montreal,Quebec,Canada,"Les mondes de Hamdi",French,Drama,2018-12-18,15000.00,15000.00,Advance,"Development Program",
2018-2019,P3,"Microscope Inc.",Montreal,Quebec,Canada,"Les b�tes",French,"Science fiction/Fantasy/Tale",2018-12-18,15000.00,15000.00,Advance,"Development Program",
2018-2019,P3,"Sugar Shack Films Inc.",Victoria,"British Columbia",Canada,"Missing: Presumed Dead",English,"Historical Drama",2018-11-21,15000.00,15000.00,Advance,"Development Program",
2018-2019,P3,"Curiosity Pictures Inc.",Burnaby,"British Columbia",Canada,"Middle 8",English,Drama,2018-11-21,15000.00,15000.00,Advance,"Development Program",
2018-2019,P3,"Screen Siren Pictures Inc.",Vancouver,"British Columbia",Canada,"Out of the Barren",English,Drama,2018-12-17,20720.00,20720.00,Advance,"Development Program",
2018-2019,P3,"Screen Siren Pictures Inc.",Vancouver,"British Columbia",Canada,"Running Girl",English,Thriller,2018-12-17,57120.00,57120.00,Advance,"Development Program",
2018-2019,P3,"Microclimat Films inc.",Montreal,Quebec,Canada,Halmoni,French,Drama,2018-10-31,15000.00,15000.00,Advance,"Development Program",
2018-2019,P3,"White Eagle Entertainment Inc.","East York",Ontario,Canada,"12 Days",English,Drama,2018-11-09,15000.00,15000.00,Advance,"Development Program",
2018-2019,P3,"Max Films M�dia Inc.",Montreal,Quebec,Canada,"FRONTI�RES (aka 3 Soeurs)",French,Thriller,2018-11-19,15000.00,15000.00,Advance,"Development Program",
2018-2019,P3,"Max Films M�dia Inc.",Montreal,Quebec,Canada,"LA MEUTE",French,Thriller,2018-11-19,15000.00,15000.00,Advance,"Development Program",
2018-2019,P3,"9342-2947 QU�BEC INC.",Orford,Quebec,Canada,M�m�,French,Comedy,2018-11-14,15000.00,15000.00,Advance,"Development Program",
2018-2019,P3,"9215-8534 Qu�bec Inc. (Parallaxes)",Saint-Pierre,Quebec,Canada,"Lentement la beaut�",French,Drama,2018-11-09,15000.00,15000.00,Advance,"Development Program",
2018-2019,P3,"Voyelles Films Productions inc.",Montreal,Quebec,Canada,SEULS,French,Drama,2018-11-27,15000.00,15000.00,Advance,"Development Program",
2018-2019,P3,"Jobro Productions Inc.",Toronto,Ontario,Canada,"Generation of Sociopaths",English,Documentary,2018-11-08,15000.00,15000.00,Advance,"Development Program",
2018-2019,P3,"K.O. 24 Inc.",Montreal,Quebec,Canada,"Mr. Thibault",French,Comedy,2018-11-20,15000.00,15000.00,Advance,"Development Program",
2018-2019,P3,"Down In The Valley Productions Inc.",Calgary,Alberta,Canada,"2 Funerals, a Round Dance and a Wedding",English,Comedy,2018-11-14,15000.00,15000.00,Advance,"Development Program",
2018-2019,P3,"Down In The Valley Productions Inc.",Calgary,Alberta,Canada,"Alberta Number One",English,Drama,2018-11-14,15000.00,15000.00,Advance,"Development Program",
2018-2019,P3,"Aiken Heart Films Inc.",Toronto,Ontario,Canada,"Boring Girls",English,Drama,2018-11-09,15000.00,15000.00,Advance,"Development Program",
2018-2019,P3,"Black Dog Films Inc.",Halifax,"Nova Scotia",Canada,Riflemen,English,Drama,2018-11-07,15000.00,15000.00,Advance,"Development Program",
2018-2019,P3,"Bad Astronaut Inc.",Halifax,"Nova Scotia",Canada,"THE KINGS DAUGHTERS",English,"Historical Drama",2018-11-19,15000.00,15000.00,Advance,"Development Program",
2018-2019,P3,"Film Forge Productions Inc.",Toronto,Ontario,Canada,"CUTBLOCK 7190",English,Drama,2018-12-14,35000.00,35000.00,Advance,"Development Program",
2018-2019,P3,"Film Forge Productions Inc.",Toronto,Ontario,Canada,Mizeria,English,Drama,2018-12-14,15000.00,15000.00,Advance,"Development Program",
2018-2019,P3,"Association coop�rative de productions audio-visuelles",Montreal,Quebec,Canada,"GALWAY GIRLS",French,Drama,2018-12-19,15000.00,15000.00,Advance,"Development Program",
2018-2019,P3,"Association coop�rative de productions audio-visuelles",Montreal,Quebec,Canada,"ISABELLE ET SOPHIE",French,Drama,2018-12-19,15000.00,15000.00,Advance,"Development Program",
2018-2019,P3,"Association coop�rative de productions audio-visuelles",Montreal,Quebec,Canada,"JULIETTE ET L'AMOUR",French,Drama,2018-12-19,15000.00,15000.00,Advance,"Development Program",
2018-2019,P3,"Association coop�rative de productions audio-visuelles",Montreal,Quebec,Canada,"LE DERNIER REPAS",French,Drama,2018-12-19,25000.00,25000.00,Advance,"Development Program",
2018-2019,P3,"Association coop�rative de productions audio-visuelles",Montreal,Quebec,Canada,"L'HABITUDE DES B�TES",French,Drama,2018-12-19,40000.00,40000.00,Advance,"Development Program",
2018-2019,P3,"Association coop�rative de productions audio-visuelles",Montreal,Quebec,Canada,"L'UNIVERS ME COMPREND ET M'ENGLOUTIT",French,Drama,2018-12-19,15000.00,15000.00,Advance,"Development Program",
2018-2019,P3,"Productions Karaman inc.",Brossard,Quebec,Canada,"La lumi�re s'�teignit",French,"Science fiction/Fantasy/Tale",2018-11-14,15000.00,15000.00,Advance,"Development Program",
2018-2019,P3,"Montefiore Films Inc.",Sudbury,Ontario,Canada,"October Crise",English,Comedy,2018-11-20,20000.00,20000.00,Advance,"Development Program",
2018-2019,P3,"PUNK Films Inc.",Toronto,Ontario,Canada,"Queen Tut",English,Drama,2018-11-06,15000.00,15000.00,Advance,"Development Program",
2018-2019,P3,"Max Films Inc.",Montreal,Quebec,Canada,"LETTRES � MARIE-VICTORIN",French,"Historical Drama",2018-11-15,90000.00,90000.00,Advance,"Development Program",
2018-2019,P3,"Max Films Inc.",Montreal,Quebec,Canada,"MAGASIN G�N�RAL",French,"Romantic Comedy",2018-11-15,15000.00,15000.00,Advance,"Development Program",
2018-2019,P3,"V�locit� International inc.",Qu�bec,Quebec,Canada,"Ax, l'affaire Lukkari",French,Action/Adventure,2018-11-05,15000.00,15000.00,Advance,"Development Program",
2018-2019,P3,"Topsail Development Limited",Halifax,"Nova Scotia",Canada,Gerrymandering,English,Comedy,2018-11-16,34769.00,34769.00,Advance,"Development Program",
2018-2019,P3,"Cave Painting Pictures Inc.",Toronto,Ontario,Canada,Knucklebone,English,Action/Adventure,2018-11-06,15000.00,15000.00,Advance,"Development Program",
2018-2019,P3,"Grassfire Films Inc.","New Waterford","Nova Scotia",Canada,Ophelia,English,Drama,2018-11-27,15000.00,15000.00,Advance,"Development Program",
2018-2019,P3,"Alcina Pictures Ltd.",Toronto,Ontario,Canada,"Night Raiders",English,"Science fiction/Fantasy/Tale",2018-11-21,15000.00,15000.00,Advance,"Development Program",
2018-2019,P3,"Alcina Pictures Ltd.",Toronto,Ontario,Canada,"Sharp Corner",English,Thriller,2018-11-21,20000.00,20000.00,Advance,"Development Program",
2018-2019,P3,"Story Hawk Pictures Inc.",Toronto,Ontario,Canada,Morbus,English,Thriller,2018-11-13,15000.00,15000.00,Advance,"Development Program",
2018-2019,P3,"A M�dia Productions Inc.",Montreal,Quebec,Canada,"C�t� passager",French,Drama,2018-11-14,25000.00,25000.00,Advance,"Development Program",
2018-2019,P3,"Achromatic Media Inc.",Montreal,Quebec,Canada,Aime-Moi,French,Drama,2018-11-08,15000.00,15000.00,Advance,"Development Program",
2018-2019,P3,"julijette inc.",Winnipeg,Manitoba,Canada,Lemniscate,English,"Science fiction/Fantasy/Tale",2018-12-04,20000.00,20000.00,Advance,"Development Program",
2018-2019,P3,"Productions 10e Ave Inc.",Saint-Augustin-de-Desmaures,Quebec,Canada,"F�lix 2",French,Action/Adventure,2018-12-20,55000.00,55000.00,Advance,"Development Program",
2018-2019,P3,"Productions 10e Ave Inc.",Saint-Augustin-de-Desmaures,Quebec,Canada,"Le duc de Godendard",French,"Science fiction/Fantasy/Tale",2018-12-20,45000.00,45000.00,Advance,"Development Program",
2018-2019,P3,"Eye Steel Film Inc.",Montreal,Quebec,Canada,"Chad Kassam: Renaissance Man of the Blues",English,Documentary,2018-11-08,15000.00,15000.00,Advance,"Development Program",
2018-2019,P3,"Goodbye Productions Inc.",Vancouver,"British Columbia",Canada,"The Bearded Girl",English,Drama,2018-11-21,15000.00,15000.00,Advance,"Development Program",
2018-2019,P3,"Goodbye Productions Inc.",Vancouver,"British Columbia",Canada,"Once Our Land",English,"Science fiction/Fantasy/Tale",2018-11-21,15000.00,15000.00,Advance,"Development Program",
2018-2019,P3,"CarpeDiem Film & TV Inc.",Montreal,Quebec,Canada,"Le Roi des R�ves",French,Action/Adventure,2018-11-05,60000.00,60000.00,Advance,"Development Program",
2018-2019,P3,"Full Regalia Enterprises Inc.",Gibsons,"British Columbia",Canada,"#memorymaker (working title)",English,Thriller,2018-10-18,15000.00,15000.00,Advance,"Development Program",
2018-2019,P3,"Euclid 431 Pictures Inc.",Toronto,Ontario,Canada,"THE BEGINNING",English,Thriller,2018-12-13,15000.00,15000.00,Advance,"Development Program",
2018-2019,P3,"Darius Films Inc.",Toronto,Ontario,Canada,"Better Now",English,Comedy,2018-11-06,15000.00,15000.00,Advance,"Development Program",
2018-2019,P3,"Darius Films Inc.",Toronto,Ontario,Canada,"Virgin Summer",English,Comedy,2018-11-06,25000.00,25000.00,Advance,"Development Program",
2018-2019,P3,"Item 7 Inc.",Montreal,Quebec,Canada,"The Traveler",English,Comedy,2018-12-19,17500.00,17500.00,Advance,"Development Program",
2018-2019,P3,"Item 7 Inc.",Montreal,Quebec,Canada,30-Love,French,Comedy,2018-12-19,35000.00,35000.00,Advance,"Development Program",
2018-2019,P3,"Item 7 Inc.",Montreal,Quebec,Canada,Darling,English,Drama,2018-12-19,15000.00,15000.00,Advance,"Development Program",
2018-2019,P3,"Item 7 Inc.",Montreal,Quebec,Canada,Fencing,English,Drama,2018-12-19,71865.00,71865.00,Advance,"Development Program",
2018-2019,P3,"Item 7 Inc.",Montreal,Quebec,Canada,"Inherited Night",English,Drama,2018-12-19,15000.00,15000.00,Advance,"Development Program",
2018-2019,P3,"Item 7 Inc.",Montreal,Quebec,Canada,�chou�,French,Drama,2018-12-19,15000.00,15000.00,Advance,"Development Program",
2018-2019,P3,"Item 7 Inc.",Montreal,Quebec,Canada,"Une vie intelligente",French,Drama,2018-12-19,25635.00,25635.00,Advance,"Development Program",
2018-2019,P3,"Honalee Productions Inc.",Vancouver,"British Columbia",Canada,Pyramiden,English,Horror,2018-11-16,20000.00,20000.00,Advance,"Development Program",
2018-2019,P3,"Circle Blue Films Inc.",Mississauga,Ontario,Canada,"NO FORWARDING ADDRESS",English,Comedy,2018-11-06,15000.00,15000.00,Advance,"Development Program",
2018-2019,P3,"6981780 CANADA INC.",Toronto,Ontario,Canada,"The Northwoods",English,Thriller,2018-11-21,15000.00,15000.00,Advance,"Development Program",
2018-2019,P3,"Freddie Films Inc.",Toronto,Ontario,Canada,"NOT SUITABLE FOR CHILDREN",English,Thriller,2018-12-10,15000.00,15000.00,Advance,"Development Program",
2018-2019,P3,"Bel Ange Moon Productions Inc.",Laval,Quebec,Canada,"En Sc�ne!",French,Drama,2018-11-21,15000.00,15000.00,Advance,"Development Program",
2018-2019,P3,"Kunuk Cohn Productions Inc.",Montreal,Quebec,Canada,"Portfolio | Portefeuille 2018-2019 Kunuk Cohn Productions Inc.",English,,2018-12-13,15000.00,15000.00,Advance,"Development Program",
2018-2019,P3,"Couzin Films Inc.",Montreal,Quebec,Canada,"Loup solitaire",French,Drama,2018-11-09,15000.00,15000.00,Advance,"Development Program",
2018-2019,P3,"Films S�ville Inc. (Les)",Montreal,Quebec,Canada,"POUR VIVRE ICI",French,Drama,2018-11-23,1500.00,1500.00,Contribution,"International Marketing Program",
2018-2019,P3,"Creative Women Workshops Association","North Vancouver","British Columbia",Canada,"Women In the Director's Chair - WIDC 2019",,,2018-11-14,50000.00,50000.00,Contribution,"Promotion Program",
2018-2019,P3,"1459479 Alberta Inc. dba Raging River Productions",Calgary,Alberta,Canada,"April in Autumn",English,Drama,2018-10-23,1500.00,1500.00,Contribution,"International Marketing Program",
2018-2019,P3,"9185-6120 Qu�bec Inc.",Montreal,Quebec,Canada,"La grande noirceur",French,Drama,2018-10-18,1500.00,1500.00,Contribution,"International Marketing Program",
2018-2019,P3,"A71 Entertainment Inc.",Toronto,Ontario,Canada,"Becoming Burlesque",English,,2018-11-28,43750.00,43750.00,Advance,"Marketing Program",
2018-2019,P3,"Fondation Fabienne Colas",Saint-Lambert,Quebec,Canada,"Festival International du Film Black de Montr�al",,,2018-10-24,25000.00,25000.00,Contribution,"Promotion Program",
2018-2019,P3,"Firecrackers Film Incorporated",Bolton,Ontario,Canada,Firecrackers,English,,2018-12-17,1500.00,1500.00,Contribution,"International Marketing Program",
2018-2019,P3,"Filmoption International Inc.",Westmount,Quebec,Canada,L'Amour,French,Drama,2018-11-23,93750.00,93750.00,Advance,"Marketing Program",
2018-2019,P3,"Productions Caramel Film Inc.",Montreal,Quebec,Canada,"Le Retour de Silverman",French,Comedy,2018-12-18,56873.00,56873.00,Advance,"Development Program",
2018-2019,P3,"Productions Caramel Film Inc.",Montreal,Quebec,Canada,"Le Premier qui rira",French,Drama,2018-12-18,15000.00,15000.00,Advance,"Development Program",
2018-2019,P3,"Productions Caramel Film Inc.",Montreal,Quebec,Canada,Peshawar,French,Drama,2018-12-18,76100.00,76100.00,Advance,"Development Program",
2018-2019,P3,"Productions Caramel Film Inc.",Montreal,Quebec,Canada,L'Anglais,English,"Romantic Comedy",2018-12-18,67027.00,67027.00,Advance,"Development Program",
2018-2019,P3,"DCP Mystery Arts Inc.",Toronto,Ontario,Canada,"Cold & Old",English,Comedy,2018-12-20,17706.00,17706.00,Advance,"Development Program",
2018-2019,P3,"DCP Mystery Arts Inc.",Toronto,Ontario,Canada,"Ice Cream Mondae",English,Drama,2018-12-20,58960.00,58960.00,Advance,"Development Program",
2018-2019,P3,"DCP Mystery Arts Inc.",Toronto,Ontario,Canada,"Distinguished Conduct",English,"Historical Drama",2018-12-20,61666.00,61666.00,Advance,"Development Program",
2018-2019,P3,"DCP Mystery Arts Inc.",Toronto,Ontario,Canada,"The Sound of Thunder",English,"Historical Drama",2018-12-20,61666.00,61666.00,Advance,"Development Program",
2018-2019,P3,"The Quebec English-Language Production Council (QEPC)",Montreal,Quebec,Canada,"OLMC Production Research Report",,,2018-10-26,5000.00,5000.00,Contribution,"Promotion Program",
2018-2019,P3,"The Quebec English-Language Production Council (QEPC)",Montreal,Quebec,Canada,"Indigenous Production Research Report",,,2018-10-26,5000.00,5000.00,Contribution,"Promotion Program",
2018-2019,P3,"Festival cin�ma du monde de Sherbrooke",Sherbrooke,Quebec,Canada,"Festival cin�ma du monde de Sherbrooke",,,2018-11-28,5000.00,5000.00,Contribution,"Promotion Program",
2018-2019,P3,"LIGNE 7 SAS",Tourcoing,,France,"La Terre vue du coeur",French,Documentary,2018-11-29,20000.00,20000.00,Contribution,"Export Assistance Program",
2018-2019,P3,"Maison 4:3 Inc.",Montreal,Quebec,Canada,"HAPPY FACE",English,,2018-12-12,39024.00,39024.00,Advance,"Marketing Program",
2018-2019,P3,"Hudson Festival of Canadian Film",Hudson,Quebec,Canada,"Hudson Festival of Canadian Film",,,2018-11-15,2000.00,2000.00,Contribution,"Promotion Program",
2018-2019,P3,"Association qu�b�coise de la production m�diatique",Montreal,Quebec,Canada,"Congr�s AQPM",,,2018-12-14,7000.00,7000.00,Contribution,"Promotion Program",
2018-2019,P3,"L'OEIL VIF (Faisant affaire sous le nom Les Films du 3 mars)",Montreal,Quebec,Canada,Ensemble,French,Documentary,2018-12-20,9967.00,9967.00,Advance,"Marketing Program",
2018-2019,P3,"Maison 4:3 Inc.",Montreal,Quebec,Canada,"R�PERTOIRE DES VILLES",French,,2018-12-21,125000.00,125000.00,Advance,"Marketing Program",
2018-2019,P3,"Tortuga films productions III Inc.",Rimouski,Quebec,Canada,"LES COASTERS",French,Documentary,2018-12-14,15000.00,15000.00,Advance,"Marketing Program",
2018-2019,P3,"Giant Little Ones Film Inc.",Toronto,Ontario,Canada,"Giant Little Ones (The)",English,Drama,2018-11-05,1500.00,1500.00,Contribution,"International Marketing Program",
2018-2019,P3,"Global Visions Festival Society",Edmonton,Alberta,Canada,"NorthwestFest 2018 Red Carpet",,,2018-12-21,5000.00,5000.00,Contribution,"Promotion Program",
2018-2019,P3,"9259-4654 Qu�bec inc.",Montreal,Quebec,Canada,"L'�tat sauvage",French,"Historical Drama",2018-11-30,400000.00,400000.00,Investment,"Production Program",
2018-2019,P3,"Voyelles Films inc.",Montreal,Quebec,Canada,"All you can eat Bouddha",French,Drama,2018-11-26,1500.00,1500.00,Contribution,"International Marketing Program",
2018-2019,P3,Paraloeil,Rimouski,Quebec,Canada,"Cin�ma Paraloeil - du cin�ma qui nous regarde",,,2018-12-10,8140.00,8140.00,Contribution,"Promotion Program",
2018-2019,P3,"Antenne cr�ative",Montreal,Quebec,Canada,"HUB MONTREAL 2018",,,2018-12-10,10000.00,10000.00,Contribution,"Promotion Program",
2018-2019,P3,"Visions Ouest Productions",Vancouver,"British Columbia",Canada,"Rendez-vous du cin�ma qu�b�cois et francophone de Vancouver",,,2018-11-30,13132.00,13132.00,Contribution,"Promotion Program",
2018-2019,P3,"A71 Entertainment Inc.",Toronto,Ontario,Canada,"Love Jacked",English,,2018-12-13,150675.00,150675.00,Advance,"Marketing Program",
2018-2019,P3,"GESTION CTVM + WEB INC",Outremont,Quebec,Canada,"Promotion et visibilit� de T�l�film Canada sur CTVM.info",,,2018-12-12,23000.00,23000.00,Contribution,"Promotion Program",
2018-2019,P3,"Cin� Qu�bec",Boucherville,Quebec,Canada,"CIN� QU�BEC",,,2018-12-04,36048.00,36048.00,Contribution,"Promotion Program",
2018-2019,P3,"136469 Canada Limited o/a Sphinx Productions",Toronto,Ontario,Canada,"Carmine Street Guitars",English,,2018-12-04,1500.00,1500.00,Contribution,"International Marketing Program",
2018-2019,P3,"Films Christal, s.e.c.(Les), agissant par l'interm�diaire de son commandit�, Les Films Christal Inc",Montreal,Quebec,Canada,"� TOUS CEUX QUI NE ME LISENT PAS",French,,2018-12-19,86663.00,86663.00,Advance,"Marketing Program",
2018-2019,P3,"Women In Film & Television Vancouver Society",Vancouver,"British Columbia",Canada,"VIWIFF and WIFT-V Genre Lab",,,2018-12-07,15000.00,15000.00,Contribution,"Promotion Program",
2018-2019,P3,"Festival International de Musique POP Montr�al",Montreal,Quebec,Canada,"POP Montreal",,,2018-12-18,5000.00,5000.00,Contribution,"Promotion Program",
2018-2019,P3,"FESTIVAL DU FILM INTERNATIONAL DE BAIE-COMEAU (CINOCHE) INC",Baie-Comeau,Quebec,Canada,"Festival du film international de Baie-Comeau (Cinoche)",,,2018-12-20,6000.00,6000.00,Contribution,"Promotion Program",
2018-2019,P3,"Storyline Fx Inc.",Winnipeg,Manitoba,Canada,"Freeze Frame",,,2018-12-13,9345.00,9345.00,Contribution,"Promotion Program",
2018-2019,P3,"Euclid 431 Pictures Inc.",Toronto,Ontario,Canada,"Giant Little Ones (The)",English,Drama,2018-12-17,1500.00,1500.00,Contribution,"International Marketing Program",
2018-2019,P3,"DCP Mystery Arts Inc.",Toronto,Ontario,Canada,"Death of a Ladies' Man",English,Drama,2018-12-20,150000.00,150000.00,Advance,"Production Program",
